[Event "Early-Titled-Tuesday-Blitz-July-09-2024"]
[Site "Chess.com"]
[Date "2024.07.09"]
[Round "11"]
[White "Ganziitoo"]
[Black "Gnechko_Ruslan"]
[Result "0-1"]
[WhiteElo "2338"]
[BlackElo "2525"]
[TimeControl "180+1"]
[EndTime "10:07:27 PDT"]
[Termination "Gnechko_Ruslan won by resignation"]

1. e4 {[%clk 0:02:56.8]} 1... c5 {[%clk 0:02:58.1]} 2. Nf3 {[%clk 0:02:57.2]}
2... g6 {[%clk 0:02:58.4]} 3. c4 {[%clk 0:02:55.8]} 3... Bg7 {[%clk 0:02:57.9]}
4. d4 {[%clk 0:02:56.1]} 4... cxd4 {[%clk 0:02:58.8]} 5. Nxd4 {[%clk 0:02:56.9]}
5... Nc6 {[%clk 0:02:59.6]} 6. Be3 {[%clk 0:02:56.9]} 6... Nf6 {[%clk
0:02:59.9]} 7. Nc3 {[%clk 0:02:57.4]} 7... O-O {[%clk 0:03:00.2]} 8. Be2 {[%clk
0:02:57.5]} 8... d6 {[%clk 0:02:58.4]} 9. O-O {[%clk 0:02:57.8]} 9... Bd7 {[%clk
0:02:58.9]} 10. h3 {[%clk 0:02:53.1]} 10... Nxd4 {[%clk 0:02:57.8]} 11. Bxd4
{[%clk 0:02:53.4]} 11... Bc6 {[%clk 0:02:58.7]} 12. Qc2 {[%clk 0:02:53.1]} 12...
a5 {[%clk 0:02:59]} 13. Rab1 {[%clk 0:02:46.9]} 13... Nd7 {[%clk 0:02:59.5]} 14.
Be3 {[%clk 0:02:43.7]} 14... Nc5 {[%clk 0:02:59]} 15. f3 {[%clk 0:02:42]} 15...
e6 {[%clk 0:02:57.7]} 16. Rfd1 {[%clk 0:02:40.7]} 16... Qe7 {[%clk 0:02:58]} 17.
Bf2 {[%clk 0:02:38.8]} 17... Rad8 {[%clk 0:02:57.4]} 18. Bf1 {[%clk 0:02:39.1]}
18... h5 {[%clk 0:02:49]} 19. b3 {[%clk 0:02:38.5]} 19... Qg5 {[%clk 0:02:46.6]}
20. a3 {[%clk 0:02:33.4]} 20... Na6 {[%clk 0:02:01.8]} 21. b4 {[%clk 0:02:29.9]}
21... axb4 {[%clk 0:02:01.9]} 22. axb4 {[%clk 0:02:30.8]} 22... Nb8 {[%clk
0:01:58.1]} 23. b5 {[%clk 0:02:30.5]} 23... Be8 {[%clk 0:01:58.6]} 24. Na4
{[%clk 0:02:17.3]} 24... f5 {[%clk 0:01:56.9]} 25. exf5 {[%clk 0:02:06.5]} 25...
Rxf5 {[%clk 0:01:54.3]} 26. Qd2 {[%clk 0:01:42.6]} 26... Qe7 {[%clk 0:01:39.8]}
27. Bb6 {[%clk 0:01:22.2]} 27... Rd7 {[%clk 0:01:36]} 28. Ba7 {[%clk 0:01:22.3]}
28... Rd8 {[%clk 0:01:35.4]} 29. c5 {[%clk 0:01:20.9]} 29... d5 {[%clk
0:01:34.6]} 30. Bb6 {[%clk 0:00:56.3]} 30... Rc8 {[%clk 0:01:32.8]} 31. Bd3
{[%clk 0:00:55]} 31... Rf8 {[%clk 0:01:30.1]} 32. Re1 {[%clk 0:00:52.9]} 32...
Qh4 {[%clk 0:01:26.4]} 33. Rb4 {[%clk 0:00:46.1]} 33... Qg3 {[%clk 0:01:25.6]}
34. Qf2 {[%clk 0:00:39.1]} 34... Qxf2+ {[%clk 0:01:16]} 35. Kxf2 {[%clk
0:00:40]} 35... e5 {[%clk 0:01:16.6]} 36. Bb1 {[%clk 0:00:37.7]} 36... Nd7
{[%clk 0:01:14.9]} 37. Rc1 {[%clk 0:00:27.8]} 37... e4 {[%clk 0:01:14.8]} 38.
Ke2 {[%clk 0:00:23.4]} 38... exf3+ {[%clk 0:01:14.3]} 39. gxf3 {[%clk
0:00:24.3]} 39... Ne5 {[%clk 0:01:11.8]} 40. f4 {[%clk 0:00:12.4]} 40... Nc4
{[%clk 0:01:12.2]} 41. Rf1 {[%clk 0:00:08.7]} 41... Bd7 {[%clk 0:01:05.8]} 42.
Bd3 {[%clk 0:00:08.1]} 42... Rce8+ {[%clk 0:01:05.5]} 43. Kd1 {[%clk 0:00:03.8]}
43... Ne3+ {[%clk 0:01:05.4]} 44. Kd2 {[%clk 0:00:03.3]} 44... Nxf1+ {[%clk
0:01:05.8]} 45. Bxf1 {[%clk 0:00:04.2]} 45... g5 {[%clk 0:00:59.1]} 46. Nc3
{[%clk 0:00:03]} 46... Bxc3+ {[%clk 0:00:54.4]} 47. Kxc3 {[%clk 0:00:03.1]}
47... Rxf4 {[%clk 0:00:55.3]} 48. Rxf4 {[%clk 0:00:01.9]} 48... gxf4 {[%clk
0:00:56.2]} 49. Kd3 {[%clk 0:00:02.3]} 49... Re3+ {[%clk 0:00:55.5]} 50. Kd4
{[%clk 0:00:02.9]} 50... Re1 {[%clk 0:00:51.6]} 51. Bd3 {[%clk 0:00:01.9]} 51...
f3 {[%clk 0:00:50.7]} 52. Kxd5 {[%clk 0:00:01.5]} 52... f2 {[%clk 0:00:51.1]}
53. Kc4 {[%clk 0:00:02.1]} 53... Bxh3 {[%clk 0:00:49.5]} 54. c6 {[%clk
0:00:02.3]} 54... bxc6 {[%clk 0:00:49]} 55. bxc6 {[%clk 0:00:02.5]} 55... Rc1+
{[%clk 0:00:49.1]} 56. Kd5 {[%clk 0:00:01.6]} 56... Bg2+ {[%clk 0:00:47.8]} 57.
Ke5 {[%clk 0:00:01.3]} 57... f1=Q {[%clk 0:00:47.1]} 58. Bf2 {[%clk 0:00:02.2]}
0-1

[Event "Early-Titled-Tuesday-Blitz-July-09-2024"]
[Site "Chess.com"]
[Date "2024.07.09"]
[Round "11"]
[White "2Coaches1Profile"]
[Black "yonaltimur"]
[Result "1-0"]
[WhiteElo "2600"]
[BlackElo "2292"]
[TimeControl "180+1"]
[EndTime "10:07:32 PDT"]
[Termination "2Coaches1Profile won on time"]

1. d4 {[%clk 0:02:58.9]} 1... d5 {[%clk 0:02:58.3]} 2. Nf3 {[%clk 0:02:57.1]}
2... Nf6 {[%clk 0:02:56.6]} 3. e3 {[%clk 0:02:57.1]} 3... e6 {[%clk 0:02:53.2]}
4. Nbd2 {[%clk 0:02:56.9]} 4... Bd6 {[%clk 0:02:52.1]} 5. Bd3 {[%clk 0:02:57.2]}
5... O-O {[%clk 0:02:51.9]} 6. O-O {[%clk 0:02:57.7]} 6... Nbd7 {[%clk
0:02:45.6]} 7. e4 {[%clk 0:02:49]} 7... dxe4 {[%clk 0:02:44.1]} 8. Nxe4 {[%clk
0:02:49.9]} 8... Nxe4 {[%clk 0:02:44.7]} 9. Bxe4 {[%clk 0:02:50.8]} 9... Nf6
{[%clk 0:02:42.8]} 10. Bd3 {[%clk 0:02:50.7]} 10... h6 {[%clk 0:02:41.1]} 11.
Qe2 {[%clk 0:02:49.5]} 11... c5 {[%clk 0:02:41.1]} 12. dxc5 {[%clk 0:02:48]}
12... Bxc5 {[%clk 0:02:42]} 13. Bf4 {[%clk 0:02:46.2]} 13... Qe7 {[%clk
0:02:41.6]} 14. Rad1 {[%clk 0:02:42.2]} 14... b6 {[%clk 0:02:39.6]} 15. Ne5
{[%clk 0:02:35.5]} 15... Bb7 {[%clk 0:02:39]} 16. Bg3 {[%clk 0:02:33.6]} 16...
Rfd8 {[%clk 0:02:38.4]} 17. Bh4 {[%clk 0:02:32.8]} 17... g5 {[%clk 0:02:20.5]}
18. Bg3 {[%clk 0:02:30.4]} 18... Kg7 {[%clk 0:02:01.9]} 19. h4 {[%clk
0:02:30.3]} 19... Rd4 {[%clk 0:01:57.3]} 20. c3 {[%clk 0:02:22.9]} 20... Rd5
{[%clk 0:01:50.1]} 21. hxg5 {[%clk 0:02:04.9]} 21... hxg5 {[%clk 0:01:51]} 22.
b4 {[%clk 0:02:04.4]} 22... Bd6 {[%clk 0:01:46.7]} 23. c4 {[%clk 0:01:59]} 23...
Rd4 {[%clk 0:01:44.9]} 24. Qe3 {[%clk 0:01:58.8]} 24... Rf4 {[%clk 0:01:22.6]}
25. Bxf4 {[%clk 0:01:53.5]} 25... gxf4 {[%clk 0:01:23.5]} 26. Qxf4 {[%clk
0:01:53.1]} 26... Rg8 {[%clk 0:01:22.1]} 27. c5 {[%clk 0:01:46.5]} 27... bxc5
{[%clk 0:01:15.8]} 28. Qg5+ {[%clk 0:01:40]} 28... Kf8 {[%clk 0:01:13.5]} 29.
Qh6+ {[%clk 0:01:37.6]} 29... Ke8 {[%clk 0:01:07.2]} 30. Bb5+ {[%clk 0:01:37.6]}
30... Kd8 {[%clk 0:01:07.4]} 31. Rxd6+ {[%clk 0:01:33]} 31... Qxd6 {[%clk
0:01:05.9]} 32. Nxf7+ {[%clk 0:01:32.9]} 32... Kc7 {[%clk 0:01:04.9]} 33. Nxd6
{[%clk 0:01:32.4]} 33... Rxg2+ {[%clk 0:01:04.6]} 34. Kh1 {[%clk 0:01:31.8]}
34... Rg6+ {[%clk 0:01:02.2]} 35. Nxb7 {[%clk 0:01:27.2]} 35... Rxh6+ {[%clk
0:01:02.2]} 36. Kg2 {[%clk 0:01:27.5]} 36... Kxb7 {[%clk 0:00:59.8]} 37. bxc5
{[%clk 0:01:27.8]} 37... Rh5 {[%clk 0:00:57.3]} 38. c6+ {[%clk 0:01:10.8]} 38...
Kc7 {[%clk 0:00:56.4]} 39. a4 {[%clk 0:01:10.3]} 39... Nd5 {[%clk 0:00:48.9]}
40. Re1 {[%clk 0:01:06.3]} 40... Rf5 {[%clk 0:00:41.5]} 41. Kg3 {[%clk
0:00:59.9]} 41... e5 {[%clk 0:00:30.9]} 42. Bd3 {[%clk 0:00:49.2]} 42... Rg5+
{[%clk 0:00:28.8]} 43. Kh4 {[%clk 0:00:49.7]} 43... Rg7 {[%clk 0:00:14]} 44.
Rxe5 {[%clk 0:00:49.7]} 44... Nf4 {[%clk 0:00:10.3]} 45. Be4 {[%clk 0:00:49.3]}
45... Ng6+ {[%clk 0:00:08.6]} 46. Bxg6 {[%clk 0:00:46.6]} 46... Rxg6 {[%clk
0:00:09.5]} 47. Re7+ {[%clk 0:00:43.8]} 47... Kxc6 {[%clk 0:00:08.3]} 48. Rxa7
{[%clk 0:00:44.2]} 48... Rg2 {[%clk 0:00:06]} 49. f4 {[%clk 0:00:44]} 49... Kd5
{[%clk 0:00:04.8]} 50. Re7 {[%clk 0:00:41.3]} 50... Ra2 {[%clk 0:00:02.6]} 51.
f5 {[%clk 0:00:41.3]} 51... Rxa4+ {[%clk 0:00:01.4]} 52. Kg5 {[%clk 0:00:41.8]}
52... Kd6 {[%clk 0:00:01.4]} 53. Re1 {[%clk 0:00:39.5]} 53... Ra7 {[%clk
0:00:01]} 54. Kg6 {[%clk 0:00:39.2]} 1-0

[Event "Early-Titled-Tuesday-Blitz-July-09-2024"]
[Site "Chess.com"]
[Date "2024.07.09"]
[Round "11"]
[White "annasargsyan_m"]
[Black "shimastream"]
[Result "1-0"]
[WhiteElo "2696"]
[BlackElo "2893"]
[TimeControl "180+1"]
[EndTime "10:07:34 PDT"]
[Termination "annasargsyan_m won on time"]

1. e4 {[%clk 0:03:00.9]} 1... d5 {[%clk 0:02:57]} 2. exd5 {[%clk 0:03:00.6]}
2... Qxd5 {[%clk 0:02:57.9]} 3. Nf3 {[%clk 0:03:00.8]} 3... Bg4 {[%clk
0:02:57.5]} 4. Be2 {[%clk 0:02:59]} 4... Nc6 {[%clk 0:02:57.6]} 5. O-O {[%clk
0:02:59.2]} 5... O-O-O {[%clk 0:02:57.2]} 6. d3 {[%clk 0:02:59.2]} 6... e5
{[%clk 0:02:57.1]} 7. h3 {[%clk 0:02:59.7]} 7... Bf5 {[%clk 0:02:57.2]} 8. Nc3
{[%clk 0:02:59.6]} 8... Qd7 {[%clk 0:02:57.6]} 9. Be3 {[%clk 0:02:57.3]} 9... f6
{[%clk 0:02:52.6]} 10. a3 {[%clk 0:02:54.6]} 10... g5 {[%clk 0:02:51.8]} 11. Nh2
{[%clk 0:02:53.3]} 11... Nge7 {[%clk 0:02:49.3]} 12. b4 {[%clk 0:02:53.4]} 12...
Nd4 {[%clk 0:02:47.1]} 13. Ne4 {[%clk 0:02:46.6]} 13... Nd5 {[%clk 0:02:40.8]}
14. c3 {[%clk 0:02:30]} 14... Nxe2+ {[%clk 0:02:11.9]} 15. Qxe2 {[%clk
0:02:30.9]} 15... Be7 {[%clk 0:02:10.6]} 16. c4 {[%clk 0:02:29.8]} 16... Nf4
{[%clk 0:02:10.4]} 17. Bxf4 {[%clk 0:02:25.2]} 17... gxf4 {[%clk 0:02:11.3]} 18.
Qh5 {[%clk 0:02:13.7]} 18... Bg6 {[%clk 0:02:01.9]} 19. Qh6 {[%clk 0:02:13.4]}
19... Qxd3 {[%clk 0:02:00]} 20. Nc5 {[%clk 0:02:01.6]} 20... Qxc4 {[%clk
0:01:54.8]} 21. Rfc1 {[%clk 0:02:00.3]} 21... Qf7 {[%clk 0:01:54.3]} 22. Ng4
{[%clk 0:01:50]} 22... Rd5 {[%clk 0:01:49.6]} 23. f3 {[%clk 0:01:31.5]} 23...
Rhd8 {[%clk 0:01:45.8]} 24. Nf2 {[%clk 0:01:30.7]} 24... f5 {[%clk 0:01:42.3]}
25. Rc2 {[%clk 0:01:25.5]} 25... Bf6 {[%clk 0:01:41.7]} 26. Rac1 {[%clk
0:01:25.6]} 26... Kb8 {[%clk 0:01:16.1]} 27. Nb3 {[%clk 0:01:16.5]} 27... c6
{[%clk 0:01:14.4]} 28. Na5 {[%clk 0:01:16.7]} 28... Qe7 {[%clk 0:01:09.2]} 29.
Rxc6 {[%clk 0:01:07]} 29... Bg5 {[%clk 0:00:56.7]} 30. Re6 {[%clk 0:00:55.9]}
30... Qxe6 {[%clk 0:00:37.8]} 31. Qxg5 {[%clk 0:00:56.4]} 31... Rd2 {[%clk
0:00:33.9]} 32. h4 {[%clk 0:00:50.4]} 32... Qb6 {[%clk 0:00:31.4]} 33. Rc5
{[%clk 0:00:49.9]} 33... Qe6 {[%clk 0:00:12.2]} 34. h5 {[%clk 0:00:43.2]} 34...
Bf7 {[%clk 0:00:12.6]} 35. Qg7 {[%clk 0:00:41.9]} 35... R2d7 {[%clk 0:00:11.9]}
36. Qxe5+ {[%clk 0:00:40.7]} 36... Qxe5 {[%clk 0:00:11.8]} 37. Rxe5 {[%clk
0:00:41.6]} 37... Bxh5 {[%clk 0:00:11.5]} 38. Rxf5 {[%clk 0:00:42]} 38... Bg6
{[%clk 0:00:11.8]} 39. Rxf4 {[%clk 0:00:42]} 39... Rc8 {[%clk 0:00:10.8]} 40.
Nb3 {[%clk 0:00:39.2]} 40... b6 {[%clk 0:00:09.6]} 41. b5 {[%clk 0:00:35.9]}
41... Rc3 {[%clk 0:00:09.2]} 42. Nd4 {[%clk 0:00:35.6]} 42... Rxa3 {[%clk
0:00:09.4]} 43. Nc6+ {[%clk 0:00:36.2]} 43... Kb7 {[%clk 0:00:09.6]} 44. Ng4
{[%clk 0:00:36.4]} 44... a5 {[%clk 0:00:08]} 45. Nge5 {[%clk 0:00:36]} 45... Rg7
{[%clk 0:00:07.7]} 46. Rf8 {[%clk 0:00:36.2]} 46... Rc3 {[%clk 0:00:04.1]} 47.
Rb8+ {[%clk 0:00:35]} 47... Kc7 {[%clk 0:00:04.6]} 48. Ra8 {[%clk 0:00:35.1]}
48... Kd6 {[%clk 0:00:05]} 49. Rd8+ {[%clk 0:00:24.8]} 49... Kc5 {[%clk
0:00:05.3]} 50. Nd4 {[%clk 0:00:25.5]} 50... Rc1+ {[%clk 0:00:03.2]} 51. Kh2
{[%clk 0:00:25.1]} 51... Re7 {[%clk 0:00:01.4]} 52. Nb3+ {[%clk 0:00:24.9]}
52... Kxb5 {[%clk 0:00:01.1]} 53. Nxg6 {[%clk 0:00:23.8]} 1-0

[Event "Early-Titled-Tuesday-Blitz-July-09-2024"]
[Site "Chess.com"]
[Date "2024.07.09"]
[Round "11"]
[White "chipmunknau"]
[Black "alexrustemov"]
[Result "0-1"]
[WhiteElo "2709"]
[BlackElo "2879"]
[TimeControl "180+1"]
[EndTime "10:07:40 PDT"]
[Termination "alexrustemov won by resignation"]

1. d4 {[%clk 0:03:00.9]} 1... g6 {[%clk 0:02:59.1]} 2. g3 {[%clk 0:02:59.8]}
2... Bg7 {[%clk 0:02:59.1]} 3. Bg2 {[%clk 0:03:00.3]} 3... c5 {[%clk 0:02:59.4]}
4. Nf3 {[%clk 0:02:59.5]} 4... cxd4 {[%clk 0:02:58.8]} 5. Nxd4 {[%clk
0:03:00.4]} 5... Nc6 {[%clk 0:02:59.3]} 6. Nb3 {[%clk 0:02:59.1]} 6... Nf6
{[%clk 0:02:58.2]} 7. c4 {[%clk 0:02:59.1]} 7... d6 {[%clk 0:02:54]} 8. Nc3
{[%clk 0:02:59]} 8... Be6 {[%clk 0:02:53.6]} 9. c5 {[%clk 0:02:54.1]} 9... d5
{[%clk 0:02:46.3]} 10. O-O {[%clk 0:02:52]} 10... O-O {[%clk 0:02:40]} 11. Bg5
{[%clk 0:02:46]} 11... d4 {[%clk 0:02:36.7]} 12. Nb5 {[%clk 0:02:28.8]} 12... h6
{[%clk 0:02:28.5]} 13. Bxf6 {[%clk 0:02:13.8]} 13... Bxf6 {[%clk 0:02:28.1]} 14.
Bxc6 {[%clk 0:02:14.1]} 14... bxc6 {[%clk 0:02:27.3]} 15. N5xd4 {[%clk
0:02:14.3]} 15... Bxb3 {[%clk 0:02:22.7]} 16. Nxb3 {[%clk 0:02:15.2]} 16... Bxb2
{[%clk 0:02:13.7]} 17. Qxd8 {[%clk 0:02:08.1]} 17... Rfxd8 {[%clk 0:02:13]} 18.
Rab1 {[%clk 0:02:09]} 18... Ba3 {[%clk 0:02:10.1]} 19. Rfd1 {[%clk 0:02:06.7]}
19... f5 {[%clk 0:02:01.4]} 20. Nd4 {[%clk 0:01:44.2]} 20... Bxc5 {[%clk
0:01:58.3]} 21. Nxc6 {[%clk 0:01:44.8]} 21... Rxd1+ {[%clk 0:01:57.3]} 22. Rxd1
{[%clk 0:01:45.7]} 22... Rc8 {[%clk 0:01:56.9]} 23. Ne5 {[%clk 0:01:32.1]} 23...
Kg7 {[%clk 0:01:51.7]} 24. Rd7 {[%clk 0:01:28.8]} 24... Kf6 {[%clk 0:01:47.5]}
25. Nd3 {[%clk 0:01:29.4]} 25... Bb6 {[%clk 0:01:46.4]} 26. a4 {[%clk
0:01:19.1]} 26... Ke6 {[%clk 0:01:31]} 27. Rb7 {[%clk 0:01:19.1]} 27... Rc7
{[%clk 0:01:26.4]} 28. Rb8 {[%clk 0:01:07.9]} 28... Rc4 {[%clk 0:01:22.6]} 29.
Nf4+ {[%clk 0:00:56.1]} 29... Kf7 {[%clk 0:01:13]} 30. Nd5 {[%clk 0:00:53.4]}
30... Bd4 {[%clk 0:01:02.6]} 31. e3 {[%clk 0:00:51]} 31... Bf6 {[%clk
0:00:59.1]} 32. a5 {[%clk 0:00:37.5]} 32... Rc5 {[%clk 0:00:59.1]} 33. Nxf6
{[%clk 0:00:31.3]} 33... Kxf6 {[%clk 0:00:56.8]} 34. Rf8+ {[%clk 0:00:23.5]}
34... Kg7 {[%clk 0:00:55.6]} 35. Re8 {[%clk 0:00:22.2]} 35... Kf7 {[%clk
0:00:55.4]} 36. Rh8 {[%clk 0:00:22.6]} 36... h5 {[%clk 0:00:54.4]} 37. a6 {[%clk
0:00:17.8]} 37... Ra5 {[%clk 0:00:53.3]} 38. Ra8 {[%clk 0:00:16.4]} 38... Rxa6
{[%clk 0:00:53.2]} 39. h4 {[%clk 0:00:16.8]} 39... e5 {[%clk 0:00:47.4]} 40. Kg2
{[%clk 0:00:16.2]} 40... e4 {[%clk 0:00:46.9]} 41. Kf1 {[%clk 0:00:13.9]} 41...
Ra2 {[%clk 0:00:46.6]} 42. Kg2 {[%clk 0:00:13.7]} 42... Ke6 {[%clk 0:00:39.6]}
43. Rg8 {[%clk 0:00:12.8]} 43... Kf7 {[%clk 0:00:38.9]} 44. Ra8 {[%clk
0:00:13.5]} 44... Ra6 {[%clk 0:00:38.3]} 45. Kf1 {[%clk 0:00:13.5]} 45... Ke6
{[%clk 0:00:38.2]} 46. Ke2 {[%clk 0:00:12.3]} 46... Kd5 {[%clk 0:00:38.6]} 47.
Kf1 {[%clk 0:00:08.6]} 47... Kc4 {[%clk 0:00:38.6]} 48. Ke2 {[%clk 0:00:06.4]}
48... Kb5 {[%clk 0:00:35.6]} 49. Kd2 {[%clk 0:00:04.5]} 49... Rd6+ {[%clk
0:00:34]} 50. Ke2 {[%clk 0:00:04.3]} 50... a5 {[%clk 0:00:34.4]} 51. Rb8+ {[%clk
0:00:03.4]} 51... Rb6 {[%clk 0:00:34.4]} 52. Ra8 {[%clk 0:00:03.5]} 52... Ra6
{[%clk 0:00:34.8]} 53. Rb8+ {[%clk 0:00:03.6]} 53... Kc4 {[%clk 0:00:34.1]} 54.
Rc8+ {[%clk 0:00:04.2]} 54... Kd5 {[%clk 0:00:32.8]} 55. Rd8+ {[%clk 0:00:04.6]}
55... Ke6 {[%clk 0:00:32]} 56. Re8+ {[%clk 0:00:04.3]} 56... Kd7 {[%clk
0:00:31.2]} 57. Rb8 {[%clk 0:00:03.7]} 57... a4 {[%clk 0:00:31.7]} 58. Rb2
{[%clk 0:00:04.4]} 58... a3 {[%clk 0:00:31.9]} 59. Ra2 {[%clk 0:00:05]} 59...
Kc6 {[%clk 0:00:32.5]} 60. Kd2 {[%clk 0:00:05.9]} 60... Kb5 {[%clk 0:00:32.7]}
61. Kc3 {[%clk 0:00:06.8]} 61... Ka4 {[%clk 0:00:33]} 62. Rd2 {[%clk 0:00:06.7]}
62... Rc6+ {[%clk 0:00:32.4]} 0-1

[Event "Early-Titled-Tuesday-Blitz-July-09-2024"]
[Site "Chess.com"]
[Date "2024.07.09"]
[Round "11"]
[White "Sic_Transit_GM"]
[Black "CSB7"]
[Result "0-1"]
[WhiteElo "2621"]
[BlackElo "2775"]
[TimeControl "180+1"]
[EndTime "10:07:41 PDT"]
[Termination "CSB7 won by checkmate"]

1. Nf3 {[%clk 0:03:00.9]} 1... d5 {[%clk 0:02:57.9]} 2. e3 {[%clk 0:03:00.8]}
2... Nf6 {[%clk 0:02:57.5]} 3. c4 {[%clk 0:03:00.9]} 3... e6 {[%clk 0:02:53.7]}
4. Nc3 {[%clk 0:03:00.9]} 4... c5 {[%clk 0:02:48.7]} 5. cxd5 {[%clk 0:02:58.8]}
5... Nxd5 {[%clk 0:02:48.8]} 6. Nxd5 {[%clk 0:02:50.7]} 6... exd5 {[%clk
0:02:48.9]} 7. b4 {[%clk 0:02:49.2]} 7... c4 {[%clk 0:02:18.3]} 8. Bb2 {[%clk
0:02:45.1]} 8... Bxb4 {[%clk 0:02:18.1]} 9. Bxg7 {[%clk 0:02:43.8]} 9... Rg8
{[%clk 0:02:18.2]} 10. Bb2 {[%clk 0:02:38.7]} 10... Nc6 {[%clk 0:02:15.2]} 11.
a3 {[%clk 0:02:31.9]} 11... Ba5 {[%clk 0:02:13]} 12. Qc2 {[%clk 0:02:25.6]}
12... Rg6 {[%clk 0:02:01]} 13. Be2 {[%clk 0:01:47.9]} 13... Rxg2 {[%clk
0:01:12.5]} 14. Qxh7 {[%clk 0:01:44.2]} 14... Be6 {[%clk 0:01:12.4]} 15. Nh4
{[%clk 0:01:26.9]} 15... Rg5 {[%clk 0:00:38.4]} 16. f4 {[%clk 0:01:26.2]} 16...
Qb6 {[%clk 0:00:33.8]} 17. Bf6 {[%clk 0:01:02]} 17... Qxe3 {[%clk 0:00:27.6]}
18. fxg5 {[%clk 0:00:49]} 18... Qxd2+ {[%clk 0:00:18.3]} 19. Kf1 {[%clk
0:00:47.2]} 19... Bh3+ {[%clk 0:00:17.7]} 20. Kf2 {[%clk 0:00:40.9]} 20... Bb6+
{[%clk 0:00:04.5]} 21. Kg3 {[%clk 0:00:40.4]} 21... Qe3+ {[%clk 0:00:04.5]} 22.
Bf3 {[%clk 0:00:30.8]} 22... Be6 {[%clk 0:00:04.7]} 23. Rhf1 {[%clk 0:00:23.7]}
23... Nd4 {[%clk 0:00:02.3]} 24. Qg8+ {[%clk 0:00:17.2]} 24... Kd7 {[%clk
0:00:02.2]} 25. Bxd4 {[%clk 0:00:17.7]} 25... Bxd4 {[%clk 0:00:01.5]} 26. Nf5
{[%clk 0:00:05.7]} 26... Bxf5 {[%clk 0:00:01]} 27. Qxf7+ {[%clk 0:00:03.1]}
27... Kd6 {[%clk 0:00:01.5]} 28. Qxf5 {[%clk 0:00:01.6]} 28... Be5+ {[%clk
0:00:02.1]} 29. Kg2 {[%clk 0:00:01.4]} 29... Bxa1 {[%clk 0:00:02]} 30. Qg4
{[%clk 0:00:02.3]} 30... Qd2+ {[%clk 0:00:01.4]} 31. Rf2 {[%clk 0:00:02]} 31...
Qc1 {[%clk 0:00:02.1]} 32. g6 {[%clk 0:00:02.6]} 32... Rg8 {[%clk 0:00:01.9]}
33. Qg3+ {[%clk 0:00:03]} 33... Kc6 {[%clk 0:00:01.6]} 34. Bxd5+ {[%clk
0:00:02.6]} 34... Kxd5 {[%clk 0:00:01.5]} 35. Qf3+ {[%clk 0:00:03.2]} 35... Kc5
{[%clk 0:00:02]} 36. Qf5+ {[%clk 0:00:03.7]} 36... Kb6 {[%clk 0:00:02.2]} 37.
Qe6+ {[%clk 0:00:04.2]} 37... Ka5 {[%clk 0:00:02.5]} 38. Qxg8 {[%clk 0:00:04.9]}
38... Qg5+ {[%clk 0:00:02.6]} 39. Kf1 {[%clk 0:00:05.5]} 39... Qc1+ {[%clk
0:00:02.7]} 40. Kg2 {[%clk 0:00:06.1]} 40... Qg5+ {[%clk 0:00:02.9]} 41. Kf3
{[%clk 0:00:06.3]} 41... Qf5+ {[%clk 0:00:03.3]} 42. Ke2 {[%clk 0:00:06.5]}
42... Qd3+ {[%clk 0:00:03.5]} 43. Ke1 {[%clk 0:00:07]} 43... Bc3+ {[%clk
0:00:04.2]} 44. Rd2 {[%clk 0:00:05.4]} 44... Bxd2+ {[%clk 0:00:04.5]} 45. Kd1
{[%clk 0:00:05.6]} 45... Be3+ {[%clk 0:00:04.3]} 46. Ke1 {[%clk 0:00:06.2]}
46... Qd2+ {[%clk 0:00:05.2]} 47. Kf1 {[%clk 0:00:07.1]} 47... Qf2# {[%clk
0:00:06]} 0-1

[Event "Early-Titled-Tuesday-Blitz-July-09-2024"]
[Site "Chess.com"]
[Date "2024.07.09"]
[Round "11"]
[White "Feegus"]
[Black "lu1860"]
[Result "0-1"]
[WhiteElo "2566"]
[BlackElo "2118"]
[TimeControl "180+1"]
[EndTime "10:07:41 PDT"]
[Termination "lu1860 won by resignation"]

1. d4 {[%clk 0:03:00.9]} 1... d5 {[%clk 0:02:58.1]} 2. c4 {[%clk 0:02:58.7]}
2... c6 {[%clk 0:02:57.8]} 3. cxd5 {[%clk 0:02:57.6]} 3... cxd5 {[%clk
0:02:57.6]} 4. Bf4 {[%clk 0:02:58.5]} 4... Nc6 {[%clk 0:02:56.7]} 5. Nc3 {[%clk
0:02:58.5]} 5... Nf6 {[%clk 0:02:55.8]} 6. e3 {[%clk 0:02:59]} 6... a6 {[%clk
0:02:55.2]} 7. Bd3 {[%clk 0:02:59.1]} 7... Bg4 {[%clk 0:02:54.6]} 8. Qb3 {[%clk
0:02:57.7]} 8... Na5 {[%clk 0:02:52.4]} 9. Qc2 {[%clk 0:02:54.8]} 9... Rc8
{[%clk 0:02:49.8]} 10. f3 {[%clk 0:02:48]} 10... Bd7 {[%clk 0:02:48.3]} 11. Nge2
{[%clk 0:02:45.8]} 11... e6 {[%clk 0:02:47.3]} 12. O-O {[%clk 0:02:44.3]} 12...
Be7 {[%clk 0:02:46.3]} 13. e4 {[%clk 0:02:44]} 13... g6 {[%clk 0:02:21.4]} 14.
e5 {[%clk 0:02:37.9]} 14... Nh5 {[%clk 0:02:16.7]} 15. Be3 {[%clk 0:02:34.2]}
15... Nc4 {[%clk 0:02:09.6]} 16. Bf2 {[%clk 0:02:30]} 16... Bg5 {[%clk
0:02:02.7]} 17. f4 {[%clk 0:02:14.1]} 17... Nxf4 {[%clk 0:01:57.4]} 18. Nxf4
{[%clk 0:02:14.4]} 18... Bxf4 {[%clk 0:01:57.1]} 19. Qe2 {[%clk 0:02:13.7]}
19... Bh6 {[%clk 0:01:38.2]} 20. Kh1 {[%clk 0:01:55.9]} 20... O-O {[%clk
0:01:35]} 21. Rab1 {[%clk 0:01:32.6]} 21... Nd2 {[%clk 0:01:29.7]} 22. Be3
{[%clk 0:01:19.1]} 22... Bxe3 {[%clk 0:01:19.6]} 23. Qxe3 {[%clk 0:01:19.1]}
23... Nxf1 {[%clk 0:01:06.5]} 24. Rxf1 {[%clk 0:01:17.9]} 24... Kg7 {[%clk
0:00:59.2]} 25. Rf6 {[%clk 0:01:13.6]} 25... b5 {[%clk 0:00:54.9]} 26. h4 {[%clk
0:01:09.9]} 26... b4 {[%clk 0:00:52.1]} 27. Ne2 {[%clk 0:01:10]} 27... Bb5
{[%clk 0:00:48.4]} 28. Bxb5 {[%clk 0:01:08.4]} 28... axb5 {[%clk 0:00:48]} 29.
Ng3 {[%clk 0:01:01]} 29... h6 {[%clk 0:00:41]} 30. Nh5+ {[%clk 0:00:45.9]} 30...
Kh7 {[%clk 0:00:33.9]} 31. Rf3 {[%clk 0:00:40.5]} 31... Rc4 {[%clk 0:00:23]} 32.
Nf6+ {[%clk 0:00:40.2]} 32... Kg7 {[%clk 0:00:22.5]} 33. Qd3 {[%clk 0:00:33.7]}
33... Qb6 {[%clk 0:00:19.8]} 34. Rf4 {[%clk 0:00:32.1]} 34... Qc7 {[%clk
0:00:18.5]} 35. h5 {[%clk 0:00:30.1]} 35... Rc1+ {[%clk 0:00:17.1]} 36. Kh2
{[%clk 0:00:30.2]} 36... Qc2 {[%clk 0:00:17.3]} 37. Qf3 {[%clk 0:00:15.5]} 37...
g5 {[%clk 0:00:14.6]} 38. Rg4 {[%clk 0:00:13.7]} 38... Qf5 {[%clk 0:00:13.4]}
39. Qe3 {[%clk 0:00:10.6]} 39... Rc2 {[%clk 0:00:10.2]} 40. Rg3 {[%clk
0:00:09.5]} 40... Rxb2 {[%clk 0:00:09]} 41. Ng4 {[%clk 0:00:09.8]} 41... Rc8
{[%clk 0:00:05.4]} 42. Kh3 {[%clk 0:00:07.3]} 42... Rc3 {[%clk 0:00:05.5]} 43.
Qe1 {[%clk 0:00:04.4]} 43... Rxg3+ {[%clk 0:00:05.4]} 44. Qxg3 {[%clk
0:00:05.3]} 44... Rc2 {[%clk 0:00:05.6]} 45. Kh2 {[%clk 0:00:03.7]} 45... Rc3
{[%clk 0:00:05.8]} 46. Ne3 {[%clk 0:00:03.9]} 46... Qe4 {[%clk 0:00:05]} 0-1